[Event "FIDE U16 Olympiad_boards_1-80"]
[Site "Eindhoven, Netherlands"]
[Date "2023.08.14"]
[Round "2.48"]
[White "Omeri, Eklea"]
[Black "Peglau, Charis"]
[Result "0-1"]
[TimeControl "2700+10"]
[WhiteElo "1746"]
[BlackElo "1937"]

1. e4 {[%clk 00:45:18]} {[%emt 00:00:01]} e6 {[%clk 00:45:14]} {[%emt
00:00:07]} 2. d4 {[%clk 00:45:23]} {[%emt 00:00:05]} b6 {[%clk 00:45:22]}
{[%emt 00:00:02]} 3. Bd3 {[%clk 00:45:09]} {[%emt 00:00:23]} Bb7 {[%clk
00:45:28]} {[%emt 00:00:03]} 4. Nf3 {[%clk 00:45:07]} {[%emt 00:00:13]} c5
{[%clk 00:45:06]} {[%emt 00:00:32]} 5. c3 {[%clk 00:45:02]} {[%emt 00:00:15]}
Nf6 {[%clk 00:45:00]} {[%emt 00:00:16]} 6. Bg5 {[%clk 00:44:59]} {[%emt
00:00:13]} h6 {[%clk 00:44:03]} {[%emt 00:01:07]} 7. Bxf6 {[%clk 00:44:37]}
{[%emt 00:00:32]} Qxf6 {[%clk 00:44:08]} {[%emt 00:00:05]} 8. Nbd2 {[%clk
00:43:54]} {[%emt 00:00:53]} cxd4 {[%clk 00:39:43]} {[%emt 00:04:35]} 9. cxd4
{[%clk 00:38:30]} {[%emt 00:05:34]} Nc6 {[%clk 00:38:58]} {[%emt 00:00:56]} 10.
e5 {[%clk 00:36:51]} {[%emt 00:01:49]} Qd8 {[%clk 00:38:55]} {[%emt 00:00:12]}
11. O-O {[%clk 00:34:02]} {[%emt 00:02:59]} Be7 {[%clk 00:35:09]} {[%emt
00:03:57]} 12. Nb3 {[%clk 00:33:17]} {[%emt 00:00:54]} O-O {[%clk 00:34:34]}
{[%emt 00:00:45]} 13. Nfd2 {[%clk 00:31:18]} {[%emt 00:02:08]} d6 {[%clk
00:33:56]} {[%emt 00:00:49]} 14. Be4 {[%clk 00:27:57]} {[%emt 00:03:31]} Rb8
{[%clk 00:32:14]} {[%emt 00:01:52]} 15. f4 {[%clk 00:26:56]} {[%emt 00:01:11]}
dxe5 {[%clk 00:30:08]} {[%emt 00:02:16]} 16. dxe5 {[%clk 00:27:02]} {[%emt
00:00:03]} Nd4 {[%clk 00:29:25]} {[%emt 00:00:54]} 17. Bxb7 {[%clk 00:24:34]}
{[%emt 00:02:38]} Rxb7 {[%clk 00:29:33]} {[%emt 00:00:02]} 18. Kh1 {[%clk
00:23:50]} {[%emt 00:00:54]} Rd7 {[%clk 00:29:23]} {[%emt 00:00:20]} 19. Nf3
{[%clk 00:22:13]} {[%emt 00:01:46]} Nxf3 {[%clk 00:25:53]} {[%emt 00:03:42]} 20.
Qxf3 {[%clk 00:22:21]} {[%emt 00:00:01]} Rd3 {[%clk 00:25:51]} {[%emt
00:00:12]} 21. Qe2 {[%clk 00:20:00]} {[%emt 00:02:30]} Qd5 {[%clk 00:23:27]}
{[%emt 00:02:35]} 22. Rad1 {[%clk 00:17:34]} {[%emt 00:02:36]} Rd8 {[%clk
00:23:17]} {[%emt 00:00:21]} 23. Rxd3 {[%clk 00:17:15]} {[%emt 00:00:28]} Qxd3
{[%clk 00:23:25]} {[%emt 00:00:02]} 24. Qf2 {[%clk 00:16:28]} {[%emt 00:00:57]}
Rc8 {[%clk 00:19:50]} {[%emt 00:03:45]} 25. Rc1 {[%clk 00:04:56]} {[%emt
00:11:42]} Rxc1+ {[%clk 00:19:07]} {[%emt 00:00:54]} 26. Nxc1 {[%clk 00:05:05]}
{[%emt 00:00:01]} Qd1+ {[%clk 00:19:15]} 27. Qg1 {[%clk 00:05:14]} {[%emt
00:00:01]} Qd2 {[%clk 00:19:16]} {[%emt 00:00:09]} 28. Qf1 {[%clk 00:04:19]}
{[%emt 00:01:05]} Qxb2 {[%clk 00:18:52]} {[%emt 00:00:34]} 29. h3 {[%clk
00:02:18]} {[%emt 00:02:12]} Qb1 {[%clk 00:17:48]} {[%emt 00:01:13]} 30. Qe1
{[%clk 00:01:37]} {[%emt 00:00:50]} Ba3 {[%clk 00:17:45]} {[%emt 00:00:13]} 0-1

[Event "FIDE U16 Olympiad_boards_1-80"]
[Site "Eindhoven, Netherlands"]
[Date "2023.08.14"]
[Round "2.49"]
[White "Sadekov, Maksim"]
[Black "Atanasov, Anthony"]
[Result "1-0"]
[TimeControl "2700+10"]
[WhiteElo "2107"]
[BlackElo "2239"]

1. d4 {[%clk 00:45:14]} {[%emt 00:00:05]} Nf6 {[%clk 00:45:18]} {[%emt
00:00:03]} 2. c4 {[%clk 00:45:21]} {[%emt 00:00:02]} g6 {[%clk 00:45:26]}
{[%emt 00:00:02]} 3. Nc3 {[%clk 00:45:29]} {[%emt 00:00:02]} d5 {[%clk
00:45:34]} {[%emt 00:00:03]} 4. cxd5 {[%clk 00:45:27]} {[%emt 00:00:12]} Nxd5
{[%clk 00:45:41]} {[%emt 00:00:03]} 5. e4 {[%clk 00:45:31]} {[%emt 00:00:06]}
Nxc3 {[%clk 00:45:44]} {[%emt 00:00:07]} 6. bxc3 {[%clk 00:45:37]} {[%emt
00:00:03]} Bg7 {[%clk 00:45:52]} {[%emt 00:00:02]} 7. Nf3 {[%clk 00:45:45]}
{[%emt 00:00:03]} c5 {[%clk 00:45:59]} {[%emt 00:00:03]} 8. Bb5+ {[%clk
00:45:39]} {[%emt 00:00:15]} Nc6 {[%clk 00:45:48]} {[%emt 00:00:21]} 9. O-O
{[%clk 00:45:15]} {[%emt 00:00:35]} O-O {[%clk 00:45:46]} {[%emt 00:00:11]} 10.
Be3 {[%clk 00:40:15]} {[%emt 00:05:11]} Bg4 {[%clk 00:44:24]} {[%emt 00:01:31]}
11. Bxc6 {[%clk 00:27:18]} {[%emt 00:13:08]} bxc6 {[%clk 00:44:32]} {[%emt
00:00:02]} 12. Qa4 {[%clk 00:27:15]} {[%emt 00:00:14]} Bxf3 {[%clk 00:41:13]}
{[%emt 00:03:28]} 13. gxf3 {[%clk 00:26:40]} {[%emt 00:00:44]} Qc8 {[%clk
00:41:12]} {[%emt 00:00:12]} 14. e5 {[%clk 00:21:09]} {[%emt 00:05:41]} Qe6
{[%clk 00:40:35]} {[%emt 00:00:46]} 15. Rfd1 {[%clk 00:14:01]} {[%emt
00:07:19]} f6 {[%clk 00:38:40]} {[%emt 00:02:05]} 16. dxc5 {[%clk 00:13:10]}
{[%emt 00:01:01]} Kh8 {[%clk 00:38:49]} {[%emt 00:00:01]} 17. exf6 {[%clk
00:12:12]} {[%emt 00:01:08]} Rxf6 {[%clk 00:37:58]} {[%emt 00:01:01]} 18. Qe4
{[%clk 00:11:06]} {[%emt 00:01:16]} Qf5 {[%clk 00:33:23]} {[%emt 00:04:45]} 19.
Qxf5 {[%clk 00:09:27]} {[%emt 00:01:48]} gxf5 {[%clk 00:33:32]} {[%emt
00:00:02]} 20. Rd7 {[%clk 00:07:32]} {[%emt 00:02:05]} f4 {[%clk 00:31:54]}
{[%emt 00:01:49]} 21. Bd4 {[%clk 00:05:45]} {[%emt 00:01:57]} Rg6+ {[%clk
00:30:42]} {[%emt 00:01:22]} 22. Kf1 {[%clk 00:05:49]} {[%emt 00:00:05]} e5
{[%clk 00:30:50]} {[%emt 00:00:02]} 23. Rxg7 {[%clk 00:05:57]} {[%emt
00:00:02]} Kxg7 {[%clk 00:30:58]} {[%emt 00:00:03]} 24. Bxe5+ {[%clk 00:06:05]}
{[%emt 00:00:01]} Kf7 {[%clk 00:31:07]} {[%emt 00:00:01]} 25. Bxf4 {[%clk
00:06:13]} {[%emt 00:00:02]} Rf6 {[%clk 00:30:21]} {[%emt 00:00:56]} 26. Be3
{[%clk 00:05:54]} {[%emt 00:00:29]} Rb8 {[%clk 00:30:02]} {[%emt 00:00:30]} 27.
f4 {[%clk 00:04:13]} {[%emt 00:01:51]} Rb2 {[%clk 00:29:56]} {[%emt 00:00:14]}
28. Kg2 {[%clk 00:03:37]} {[%emt 00:00:46]} Rg6+ {[%clk 00:25:43]} {[%emt
00:04:24]} 29. Kf3 {[%clk 00:03:45]} {[%emt 00:00:01]} Rh6 {[%clk 00:25:52]}
{[%emt 00:00:02]} 30. f5 {[%clk 00:01:53]} {[%emt 00:02:02]} Rh4 {[%clk
00:24:29]} {[%emt 00:01:33]} 31. Kg3 {[%clk 00:00:43]} {[%emt 00:01:20]} Ra4
{[%clk 00:19:40]} {[%emt 00:04:59]} 32. Rd1 {[%clk 00:00:37]} {[%emt 00:00:16]}
Rb7 {[%clk 00:19:49]} {[%emt 00:00:02]} 33. Rd6 {[%clk 00:00:41]} {[%emt
00:00:05]} Rc7 {[%clk 00:19:58]} {[%emt 00:00:01]} 34. Bd4 {[%clk 00:00:35]}
{[%emt 00:00:17]} Rxa2 {[%clk 00:19:52]} {[%emt 00:00:15]} 35. Rd8 {[%clk
00:00:27]} {[%emt 00:00:18]} a5 {[%clk 00:18:40]} {[%emt 00:01:23]} 36. Rh8
{[%clk 00:00:33]} {[%emt 00:00:03]} Re7 {[%clk 00:18:49]} {[%emt 00:00:01]} 37.
Rxh7+ {[%clk 00:00:23]} {[%emt 00:00:20]} Ke8 {[%clk 00:18:55]} {[%emt
00:00:02]} 38. Rh8+ {[%clk 00:00:26]} {[%emt 00:00:09]} Kd7 {[%clk 00:17:55]}
{[%emt 00:01:10]} 39. Kf4 {[%clk 00:00:14]} {[%emt 00:00:22]} Re8 {[%clk
00:17:38]} {[%emt 00:00:28]} 40. Rh7+ {[%clk 00:00:18]} {[%emt 00:00:06]} Re7
{[%clk 00:17:47]} {[%emt 00:00:01]} 41. Rh8 {[%clk 00:00:13]} {[%emt 00:00:14]}
Re8 {[%clk 00:17:56]} {[%emt 00:00:01]} 42. Rh7+ {[%clk 00:00:15]} {[%emt
00:00:09]} Re7 {[%clk 00:18:03]} {[%emt 00:00:03]} 43. Rh6 {[%clk 00:00:13]}
{[%emt 00:00:12]} a4 {[%clk 00:18:06]} {[%emt 00:00:07]} 44. f6 {[%clk
00:00:21]} {[%emt 00:00:01]} Rf7 {[%clk 00:18:04]} {[%emt 00:00:12]} 45. Kf5
{[%clk 00:00:24]} {[%emt 00:00:08]} a3 {[%clk 00:18:10]} {[%emt 00:00:03]} 46.
Rh8 {[%clk 00:00:32]} {[%emt 00:00:02]} Rd2 {[%clk 00:17:00]} {[%emt 00:01:21]}
47. Ra8 {[%clk 00:00:36]} {[%emt 00:00:05]} a2 {[%clk 00:17:09]} {[%emt
00:00:01]} 48. f4 {[%clk 00:00:13]} {[%emt 00:00:34]} Rxh2 {[%clk 00:15:08]}
{[%emt 00:02:10]} 49. c4 {[%clk 00:00:13]} {[%emt 00:00:10]} Rd2 {[%clk
00:14:41]} {[%emt 00:00:38]} 50. Be5 {[%clk 00:00:20]} {[%emt 00:00:03]} Rg2
{[%clk 00:14:26]} {[%emt 00:00:25]} 51. Ra7+ {[%clk 00:00:13]} {[%emt
00:00:17]} Ke8 {[%clk 00:14:33]} {[%emt 00:00:02]} 52. Ra8+ {[%clk 00:00:15]}
{[%emt 00:00:08]} Kd7 {[%clk 00:14:42]} {[%emt 00:00:01]} 53. Bc3 {[%clk
00:00:17]} {[%emt 00:00:07]} Rg3 {[%clk 00:14:24]} {[%emt 00:00:29]} 54. Bd4
{[%clk 00:00:15]} {[%emt 00:00:12]} Rg2 {[%clk 00:14:05]} {[%emt 00:00:29]} 55.
Ba1 {[%clk 00:00:14]} {[%emt 00:00:12]} Rg3 {[%clk 00:12:08]} {[%emt 00:02:07]}
56. Rxa2 {[%clk 00:00:19]} {[%emt 00:00:04]} Rg1 {[%emt 00:00:12]} 57. Ra7+
{[%clk 00:00:18]} Ke8 {[%clk 00:12:26]} {[%emt 00:00:01]} 58. Ra8+ {[%clk
00:00:27]} Kd7 {[%clk 00:12:36]} 59. Be5 {[%clk 00:00:36]} {[%emt 00:00:01]}
Rg2 {[%clk 00:12:41]} {[%emt 00:00:05]} 60. Bd6 {[%clk 00:00:19]} {[%emt
00:00:27]} Rg1 {[%clk 00:12:45]} {[%emt 00:00:06]} 61. Ra7+ {[%clk 00:00:13]}
{[%emt 00:00:17]} Ke8 {[%clk 00:12:54]} 62. Ra8+ {[%clk 00:00:15]} {[%emt
00:00:08]} Kd7 {[%clk 00:13:03]} 63. Ra7+ {[%clk 00:00:12]} {[%emt 00:00:14]}
Ke8 {[%clk 00:13:11]} {[%emt 00:00:01]} 64. Be7 {[%clk 00:00:21]} {[%emt
00:00:02]} Rf1 {[%clk 00:10:40]} {[%emt 00:02:41]} 65. Ra8+ {[%clk 00:00:18]}
{[%emt 00:00:12]} Kd7 {[%clk 00:10:49]} 66. Kg6 {[%clk 00:00:26]} {[%emt
00:00:02]} Ke6 {[%clk 00:10:58]} {[%emt 00:00:02]} 67. f5+ {[%clk 00:00:20]}
{[%emt 00:00:16]} Rxf5 {[%clk 00:11:05]} {[%emt 00:00:03]} 68. Re8 {[%clk
00:00:27]} {[%emt 00:00:02]} Rf4 {[%clk 00:09:52]} {[%emt 00:01:23]} 69. Bd8+
{[%clk 00:00:34]} {[%emt 00:00:03]} Kd7 {[%clk 00:09:58]} {[%emt 00:00:03]} 70.
Kxf7 {[%clk 00:00:43]} {[%emt 00:00:02]} Rxf6 {[%clk 00:10:02]} {[%emt
00:00:06]} 71. Bxf6 {[%clk 00:00:51]} {[%emt 00:00:02]} 1-0

[Event "FIDE U16 Olympiad_boards_1-80"]
[Site "Eindhoven, Netherlands"]
[Date "2023.08.14"]
[Round "2.50"]
[White "Han, Johnathan"]
[Black "Pedmanson, Albert"]
[Result "1-0"]
[TimeControl "2700+10"]
[WhiteElo "2199"]
[BlackElo "1882"]

1. e4 {[%clk 00:45:18]} {[%emt 00:00:02]} d5 {[%clk 00:45:19]} {[%emt
00:00:02]} 2. exd5 {[%clk 00:45:22]} {[%emt 00:00:05]} Qxd5 {[%clk 00:45:27]}
{[%emt 00:00:02]} 3. Nc3 {[%clk 00:45:10]} {[%emt 00:00:22]} Qd6 {[%clk
00:45:34]} {[%emt 00:00:03]} 4. d4 {[%clk 00:44:53]} {[%emt 00:00:26]} Nf6
{[%clk 00:45:40]} {[%emt 00:00:05]} 5. Nf3 {[%clk 00:43:34]} {[%emt 00:01:29]}
a6 {[%clk 00:45:48]} {[%emt 00:00:02]} 6. h3 {[%clk 00:38:58]} {[%emt
00:04:47]} b5 {[%clk 00:45:36]} {[%emt 00:00:22]} 7. Bd3 {[%clk 00:37:25]}
{[%emt 00:01:42]} Bb7 {[%clk 00:45:24]} {[%emt 00:00:22]} 8. O-O {[%clk
00:37:09]} {[%emt 00:00:26]} e6 {[%clk 00:44:09]} {[%emt 00:01:25]} 9. Re1
{[%clk 00:36:38]} {[%emt 00:00:41]} Nbd7 {[%clk 00:43:59]} {[%emt 00:00:21]} 10.
Bg5 {[%clk 00:34:50]} {[%emt 00:01:58]} Be7 {[%clk 00:39:46]} {[%emt 00:04:21]}
11. Bh4 {[%clk 00:33:02]} {[%emt 00:01:59]} O-O {[%clk 00:37:12]} {[%emt
00:02:44]} 12. Bg3 {[%clk 00:32:38]} {[%emt 00:00:34]} Qb6 {[%clk 00:37:00]}
{[%emt 00:00:21]} 13. a4 {[%clk 00:32:11]} {[%emt 00:00:37]} b4 {[%clk
00:33:03]} {[%emt 00:04:08]} 14. a5 {[%clk 00:32:14]} {[%emt 00:00:07]} Qa7
{[%clk 00:32:28]} {[%emt 00:00:46]} 15. Na4 {[%clk 00:31:50]} {[%emt 00:00:34]}
c5 {[%clk 00:28:42]} {[%emt 00:03:56]} 16. dxc5 {[%clk 00:30:31]} {[%emt
00:01:29]} Nxc5 {[%clk 00:28:47]} {[%emt 00:00:04]} 17. Nxc5 {[%clk 00:30:37]}
{[%emt 00:00:04]} Bxc5 {[%clk 00:28:54]} {[%emt 00:00:03]} 18. Qe2 {[%clk
00:29:20]} {[%emt 00:01:27]} Rad8 {[%clk 00:26:50]} {[%emt 00:02:13]} 19. Ne5
{[%clk 00:29:04]} {[%emt 00:00:27]} Qa8 {[%clk 00:25:08]} {[%emt 00:01:52]} 20.
Kh2 {[%clk 00:28:15]} {[%emt 00:00:59]} Bd4 {[%clk 00:22:58]} {[%emt 00:02:21]}
21. Rab1 {[%clk 00:21:02]} {[%emt 00:07:22]} Rd5 {[%clk 00:22:40]} {[%emt
00:00:27]} 22. Nc4 {[%clk 00:19:16]} {[%emt 00:01:56]} Rh5 {[%clk 00:21:11]}
{[%emt 00:01:40]} 23. f3 {[%clk 00:18:20]} {[%emt 00:01:05]} Rg5 {[%clk
00:16:52]} {[%emt 00:04:30]} 24. Bf4 {[%clk 00:16:18]} {[%emt 00:02:12]} Rh5
{[%clk 00:15:34]} {[%emt 00:01:29]} 25. Rbd1 {[%clk 00:16:13]} {[%emt
00:00:14]} g5 {[%clk 00:13:54]} {[%emt 00:01:50]} 26. Be5 {[%clk 00:12:41]}
{[%emt 00:03:43]} Bxe5+ {[%clk 00:09:59]} {[%emt 00:04:05]} 27. Qxe5 {[%clk
00:12:49]} {[%emt 00:00:02]} Bxf3 {[%clk 00:08:31]} {[%emt 00:01:38]} 28. Qxf6
{[%clk 00:10:55]} {[%emt 00:02:03]} Bxg2 {[%clk 00:08:36]} {[%emt 00:00:05]} 29.
Re3 {[%clk 00:10:53]} {[%emt 00:00:12]} g4 {[%clk 00:07:37]} {[%emt 00:01:10]}
30. h4 {[%clk 00:10:00]} {[%emt 00:01:02]} Rc8 {[%clk 00:06:17]} {[%emt
00:01:30]} 31. Rg1 {[%clk 00:08:24]} {[%emt 00:01:46]} Rxc4 {[%clk 00:05:26]}
{[%emt 00:01:01]} 32. Bxc4 {[%clk 00:06:53]} {[%emt 00:01:41]} Rf5 {[%clk
00:02:58]} {[%emt 00:02:38]} 33. Qd4 {[%clk 00:06:31]} {[%emt 00:00:31]} Bf3
{[%clk 00:03:07]} {[%emt 00:00:02]} 34. Rxf3 {[%clk 00:05:51]} {[%emt
00:00:50]} Qxf3 {[%clk 00:03:15]} {[%emt 00:00:02]} 35. Rxg4+ {[%clk 00:05:48]}
{[%emt 00:00:14]} 1-0

[Event "FIDE U16 Olympiad_boards_1-80"]
[Site "Eindhoven, Netherlands"]
[Date "2023.08.14"]
[Round "2.51"]
[White "Mikko, Rondo"]
[Black "Chen, Max"]
[Result "0-1"]
[TimeControl "2700+10"]
[WhiteElo "2169"]
[BlackElo "2049"]

1. d4 {[%clk 00:45:01]} {[%emt 00:00:19]} Nf6 {[%clk 00:45:04]} {[%emt
00:00:16]} 2. Nf3 {[%clk 00:44:00]} {[%emt 00:01:12]} d5 {[%clk 00:45:00]}
{[%emt 00:00:13]} 3. Bf4 {[%clk 00:42:32]} {[%emt 00:01:37]} c5 {[%clk
00:44:12]} {[%emt 00:00:58]} 4. dxc5 {[%clk 00:37:40]} {[%emt 00:05:03]} e6
{[%clk 00:43:54]} {[%emt 00:00:28]} 5. e3 {[%clk 00:32:31]} {[%emt 00:05:19]}
Bxc5 {[%clk 00:43:15]} {[%emt 00:00:49]} 6. Nbd2 {[%clk 00:31:18]} {[%emt
00:01:23]} O-O {[%clk 00:42:35]} {[%emt 00:00:50]} 7. Be2 {[%clk 00:29:46]}
{[%emt 00:01:42]} Nc6 {[%clk 00:40:39]} {[%emt 00:02:06]} 8. O-O {[%clk
00:29:21]} {[%emt 00:00:34]} Re8 {[%clk 00:38:04]} {[%emt 00:02:46]} 9. Nb3
{[%clk 00:28:29]} {[%emt 00:01:02]} Bf8 {[%clk 00:34:35]} {[%emt 00:03:39]} 10.
c4 {[%clk 00:27:15]} {[%emt 00:01:24]} h6 {[%clk 00:30:56]} {[%emt 00:03:49]}
11. Ne5 {[%clk 00:25:04]} {[%emt 00:02:20]} Bd6 {[%clk 00:29:04]} {[%emt
00:02:02]} 12. Nxc6 {[%clk 00:24:36]} {[%emt 00:00:38]} bxc6 {[%clk 00:29:11]}
{[%emt 00:00:03]} 13. Bxd6 {[%clk 00:24:42]} {[%emt 00:00:04]} Qxd6 {[%clk
00:29:18]} {[%emt 00:00:04]} 14. c5 {[%clk 00:24:47]} {[%emt 00:00:05]} Qc7
{[%clk 00:28:34]} {[%emt 00:00:54]} 15. Qc2 {[%clk 00:18:57]} {[%emt 00:05:59]}
a5 {[%clk 00:28:18]} {[%emt 00:00:27]} 16. Nd2 {[%clk 00:18:15]} {[%emt
00:00:52]} Ba6 {[%clk 00:26:49]} {[%emt 00:01:40]} 17. Bxa6 {[%clk 00:17:40]}
{[%emt 00:00:44]} Rxa6 {[%clk 00:26:38]} {[%emt 00:00:21]} 18. b3 {[%clk
00:15:07]} {[%emt 00:02:43]} Raa8 {[%clk 00:25:36]} {[%emt 00:01:12]} 19. a3
{[%clk 00:14:43]} {[%emt 00:00:34]} Reb8 {[%clk 00:24:08]} {[%emt 00:01:38]} 20.
Rab1 {[%clk 00:10:01]} {[%emt 00:04:52]} Rb5 {[%clk 00:22:44]} {[%emt
00:01:34]} 21. Rb2 {[%clk 00:08:15]} {[%emt 00:01:56]} Rab8 {[%clk 00:21:49]}
{[%emt 00:01:03]} 22. Rfb1 {[%clk 00:08:16]} {[%emt 00:00:10]} Qa7 {[%clk
00:13:57]} {[%emt 00:08:02]} 23. b4 {[%clk 00:08:14]} {[%emt 00:00:12]} Nd7
{[%clk 00:13:52]} {[%emt 00:00:15]} 24. g3 {[%clk 00:05:58]} {[%emt 00:02:26]}
g6 {[%clk 00:13:07]} {[%emt 00:00:56]} 25. Kg2 {[%clk 00:05:45]} {[%emt
00:00:23]} R8b7 {[%clk 00:11:35]} {[%emt 00:01:42]} 26. Nb3 {[%clk 00:04:20]}
{[%emt 00:01:35]} axb4 {[%clk 00:11:10]} {[%emt 00:00:35]} 27. a4 {[%clk
00:04:26]} {[%emt 00:00:04]} Ra5 {[%clk 00:09:23]} {[%emt 00:01:57]} 28. Nxa5
{[%clk 00:04:33]} {[%emt 00:00:03]} Qxa5 {[%clk 00:09:31]} {[%emt 00:00:02]} 29.
Qd2 {[%clk 00:04:38]} {[%emt 00:00:04]} Nxc5 {[%clk 00:09:24]} {[%emt
00:00:18]} 30. Rxb4 {[%emt 00:03:17]} Na6 {[%clk 00:07:32]} 31. Rxb7 {[%clk
00:01:56]} {[%emt 00:01:47]} Qxd2 {[%clk 00:07:40]} {[%emt 00:00:02]} 32. R1b2
{[%clk 00:01:55]} {[%emt 00:00:11]} Qd3 {[%clk 00:06:14]} {[%emt 00:01:36]} 33.
R2b6 {[%clk 00:01:39]} {[%emt 00:00:26]} Qe4+ {[%clk 00:05:12]} {[%emt
00:01:12]} 34. Kh3 {[%clk 00:00:14]} {[%emt 00:01:35]} Nc5 {[%clk 00:05:15]}
{[%emt 00:00:07]} 35. Rb8+ {[%clk 00:00:16]} {[%emt 00:00:08]} Kg7 {[%clk
00:05:23]} {[%emt 00:00:02]} 36. Rxc6 {[%clk 00:00:24]} {[%emt 00:00:01]} Nd3
{[%clk 00:05:31]} {[%emt 00:00:02]} 0-1

[Event "FIDE U16 Olympiad_boards_1-80"]
[Site "Eindhoven, Netherlands"]
[Date "2023.08.14"]
[Round "2.52"]
[White "Jiang, Kate Yuhua"]
[Black "Pool, Linda Maria"]
[Result "1-0"]
[TimeControl "2700+10"]
[WhiteElo "1770"]
[BlackElo "1428"]

1. e4 {[%clk 00:45:18]} {[%emt 00:00:02]} e6 {[%clk 00:45:19]} {[%emt
00:00:01]} 2. d4 {[%clk 00:45:25]} {[%emt 00:00:03]} d5 {[%clk 00:45:28]} 3. e5
{[%clk 00:45:20]} {[%emt 00:00:15]} c5 {[%clk 00:45:34]} {[%emt 00:00:04]} 4.
c3 {[%clk 00:45:27]} {[%emt 00:00:03]} Qb6 {[%clk 00:45:23]} {[%emt 00:00:20]}
5. Nf3 {[%clk 00:45:30]} {[%emt 00:00:08]} Bd7 {[%clk 00:45:13]} {[%emt
00:00:20]} 6. Bd3 {[%clk 00:45:14]} {[%emt 00:00:27]} Bb5 {[%clk 00:45:00]}
{[%emt 00:00:22]} 7. O-O {[%clk 00:44:33]} {[%emt 00:00:51]} Bxd3 {[%clk
00:44:20]} {[%emt 00:00:50]} 8. Qxd3 {[%clk 00:44:41]} {[%emt 00:00:02]} Nc6
{[%clk 00:44:18]} {[%emt 00:00:12]} 9. dxc5 {[%clk 00:41:55]} {[%emt 00:02:56]}
Bxc5 {[%clk 00:44:06]} {[%emt 00:00:21]} 10. b4 {[%clk 00:40:34]} {[%emt
00:01:32]} Be7 {[%clk 00:43:24]} {[%emt 00:00:52]} 11. Na3 {[%clk 00:37:48]}
{[%emt 00:02:55]} a6 {[%clk 00:41:58]} {[%emt 00:01:36]} 12. Re1 {[%clk
00:36:49]} {[%emt 00:01:10]} h5 {[%clk 00:37:08]} {[%emt 00:05:00]} 13. Rb1
{[%clk 00:34:02]} {[%emt 00:02:57]} Rd8 {[%clk 00:34:40]} {[%emt 00:02:38]} 14.
b5 {[%clk 00:32:09]} {[%emt 00:02:02]} axb5 {[%clk 00:33:59]} {[%emt 00:00:52]}
15. Nxb5 {[%clk 00:31:43]} {[%emt 00:00:36]} Qa5 {[%clk 00:31:05]} {[%emt
00:03:05]} 16. Bg5 {[%clk 00:29:59]} {[%emt 00:01:53]} Rc8 {[%clk 00:24:47]}
{[%emt 00:06:28]} 17. Bxe7 {[%clk 00:29:52]} {[%emt 00:00:17]} Kxe7 {[%clk
00:24:27]} {[%emt 00:00:29]} 18. Nd6 {[%clk 00:28:26]} {[%emt 00:01:37]} Rc7
{[%clk 00:23:59]} {[%emt 00:00:39]} 19. Nxf7 {[%clk 00:26:39]} {[%emt
00:01:56]} Rh6 {[%clk 00:04:35]} {[%emt 00:19:35]} 20. Nxh6 {[%clk 00:26:36]}
{[%emt 00:00:12]} Nxh6 {[%clk 00:04:43]} {[%emt 00:00:02]} 21. c4 {[%clk
00:21:33]} {[%emt 00:05:13]} Qxa2 {[%clk 00:02:50]} {[%emt 00:02:03]} 22. Qg6
{[%clk 00:20:28]} {[%emt 00:01:15]} Nf5 {[%clk 00:02:10]} {[%emt 00:00:50]} 23.
Ng5 {[%clk 00:19:51]} {[%emt 00:00:47]} Nd8 {[%clk 00:01:43]} {[%emt 00:00:37]}
24. cxd5 {[%clk 00:19:32]} {[%emt 00:00:28]} Qxd5 {[%clk 00:01:05]} {[%emt
00:00:49]} 25. Rbd1 {[%clk 00:19:22]} {[%emt 00:00:20]} Qc4 {[%clk 00:00:22]}
{[%emt 00:00:52]} 26. Rxd8 {[%clk 00:18:13]} {[%emt 00:01:20]} Kxd8 {[%clk
00:00:19]} {[%emt 00:00:13]} 27. Nxe6+ {[%clk 00:18:17]} {[%emt 00:00:05]} Kd7
{[%clk 00:00:12]} {[%emt 00:00:18]} 28. Nxc7 {[%clk 00:18:01]} {[%emt
00:00:26]} Qxc7 {[%clk 00:00:11]} {[%emt 00:00:10]} 29. Qxf5+ {[%clk 00:18:06]}
{[%emt 00:00:05]} Ke8 {[%clk 00:00:19]} {[%emt 00:00:03]} 30. e6 {[%clk
00:18:06]} {[%emt 00:00:10]} 1-0